bitfinex/quotes_BTCUSD_20241215
["timestamp","ask_amount","ask_price","bid_price","bid_amount"]
[1734252797194,0.58649299,101920.0,101910.0,0.0049669]
[1734252797988,0.49835096,101920.0,101910.0,0.0049669]
[1734252798254,0.58649299,101920.0,101910.0,0.0049669]
[1734252801609,0.58649299,101920.0,101910.0,0.0835669]
[1734252802698,0.56651212,101920.0,101910.0,0.0835669]
[1734252803126,0.47837009,101920.0,101910.0,0.0835669]
[1734252806921,0.56656154,101920.0,101910.0,0.0835669]
[1734252807496,0.58569593,101920.0,101910.0,0.0835669]
[1734252809374,0.58569593,101920.0,101910.0,0.0051391]
[1734252809796,0.58571568,101920.0,101910.0,0.0051391]
[1734252810217,0.68476971,101920.0,101910.0,0.0051391]
[1734252811812,0.58571568,101920.0,101910.0,0.0051391]
[1734252812643,0.58571568,101920.0,101910.0,0.0839391]
[1734252813739,0.71803249,101920.0,101910.0,0.0839391]
[1734252814234,0.89450609,101920.0,101910.0,0.0839391]
[1734252814432,0.71806093,101920.0,101910.0,0.0839391]
[1734252815542,0.99356012,101920.0,101910.0,0.0839391]
[1734252816456,0.81711496,101920.0,101910.0,0.0839391]
[1734252817295,0.99356012,101920.0,101910.0,0.0839391]
[1734252824419,0.89450609,101920.0,101910.0,0.0839391]
[1734252827762,0.49750448,101920.0,101910.0,0.0839391]
[1734252827971,0.89465045,101920.0,101910.0,0.0839391]
[1734252829573,0.72551606,101920.0,101910.0,0.19843655]
[1734252829800,0.54900674,101920.0,101910.0,0.19843655]
[1734252830233,0.27039275,101920.0,101910.0,0.19843655]
[1734252830571,0.40277474,101920.0,101910.0,0.39468755]
[1734252830775,0.18213809,101920.0,101910.0,0.39468755]
[1734252830956,0.18213809,101920.0,101910.0,0.48258078]
[1734252831184,0.18213809,101920.0,101910.0,0.61442063]
[1734252831571,0.18213809,101920.0,101910.0,0.93866307]
[1734252831774,0.18213809,101920.0,101910.0,0.61442063]
[1734252832184,0.18213809,101920.0,101910.0,0.48251042]
[1734252837147,0.18213809,101920.0,101910.0,0.39468755]
[1734252841009,0.18213809,101920.0,101910.0,0.48245592]
[1734252841642,0.18213809,101920.0,101910.0,0.39468755]
[1734252841999,0.18213809,101920.0,101910.0,0.48245592]
[1734252842779,0.18213809,101920.0,101910.0,0.39468755]
[1734252844494,0.18213809,101920.0,101910.0,0.44468755]
[1734252863407,0.18213809,101920.0,101910.0,0.3788901]
[1734252863609,0.18213809,101920.0,101910.0,0.44468755]
[1734252866462,0.18213809,101920.0,101910.0,0.53245103]
[1734252866617,0.10913809,101920.0,101910.0,0.53245103]
[1734252869925,0.10913809,101920.0,101910.0,0.66409625]
[1734252871293,0.10913809,101920.0,101910.0,0.98827297]
[1734252872423,0.01008406,101920.0,101910.0,1.05407042]
[1734252872632,0.01008406,101920.0,101910.0,0.98827297]
[1734252872833,0.01008406,101920.0,101910.0,1.16379993]
[1734252873074,0.01008406,101920.0,101910.0,1.22959738]
[1734252873273,0.01008406,101920.0,101910.0,1.16379993]
[1734252874278,0.01008406,101920.0,101910.0,1.44900609]
[1734252874488,0.01008406,101920.0,101910.0,1.36124261]
[1734252876233,0.01008406,101920.0,101910.0,1.22959739]
[1734252876668,0.01008406,101920.0,101910.0,1.36140638]
[1734252878095,0.0006339,101920.0,101910.0,1.36140638]
[1734252879091,0.0006339,101920.0,101910.0,1.36197738]
[1734252879914,0.0006339,101920.0,101910.0,0.72628245]
[1734252880124,0.0006339,101920.0,101910.0,0.660485]
[1734252881283,0.00991122,101940.0,101930.0,0.1823]
[1734252881469,0.00996596,101940.0,101930.0,1.22937817]
[1734252881800,0.00996596,101940.0,101930.0,1.30058841]
[1734252882541,0.00996596,101940.0,101930.0,1.38829937]
[1734252884579,0.00996596,101940.0,101930.0,1.16878034]
[1734252887546,0.00996596,101940.0,101930.0,0.99316512]
[1734252888327,0.00996596,101940.0,101930.0,1.16878034]
[1734252888735,0.00996596,101940.0,101930.0,0.99316512]
[1734252888895,0.00996596,101940.0,101930.0,1.16878034]
[1734252889963,0.00014084,101940.0,101930.0,1.23285888]
[1734252890627,0.00014084,101940.0,101930.0,1.38285888]
[1734252893614,0.00014084,101940.0,101930.0,1.20770676]
[1734252894445,0.00014084,101940.0,101930.0,0.66548778]
[1734252894647,0.00014084,101940.0,101930.0,1.20731689]
[1734252898615,0.00014084,101940.0,101930.0,0.88427051]
[1734252899630,0.00014084,101940.0,101930.0,0.75267561]
[1734252899869,0.00014084,101940.0,101930.0,0.88427051]
[1734252902114,0.00014084,101940.0,101930.0,1.2071598]
[1734252906671,0.00014084,101940.0,101930.0,1.20706743]
[1734252907093,0.00014084,101940.0,101930.0,1.22628782]
[1734252911118,0.00014084,101940.0,101930.0,1.22642267]
[1734252911457,0.00014084,101940.0,101930.0,1.40141183]
[1734252911662,0.00014084,101940.0,101930.0,1.22642267]
[1734252912481,0.00014084,101940.0,101930.0,1.40141183]
[1734252913118,0.00014084,101940.0,101930.0,1.38219144]
[1734252915637,0.00014084,101940.0,101930.0,1.38264895]
[1734252916499,0.00014084,101940.0,101930.0,1.60152503]
[1734252916824,0.00014084,101940.0,101930.0,1.46993013]
[1734252917037,0.00014084,101940.0,101930.0,1.48622758]
[1734252917280,0.00014084,101940.0,101930.0,1.55202503]
[1734252917757,0.00014084,101940.0,101930.0,1.42043013]
[1734252917993,0.00014084,101940.0,101930.0,1.55202503]
[1734252918703,0.00014084,101940.0,101930.0,1.4644746]
[1734252920071,0.00014084,101940.0,101930.0,0.61598778]
[1734252920271,0.00014084,101940.0,101930.0,1.46522502]
[1734252920790,0.00014084,101940.0,101930.0,1.33378322]
[1734252922548,0.00014084,101940.0,101930.0,1.09273004]
[1734252923102,0.00014084,101940.0,101930.0,1.1853085]
[1734252923535,0.00014084,101940.0,101930.0,1.00993004]
[1734252924560,0.00014084,101940.0,101930.0,1.27281364]
[1734252925537,0.00014084,101940.0,101930.0,1.05734309]
[1734252925743,0.00014084,101940.0,101930.0,1.12328926]
[1734252925957,0.37338787,101940.0,101930.0,0.66419266]
[1734252926177,0.39638787,101940.0,101930.0,0.9715931]
[1734252926595,0.20019487,101940.0,101930.0,1.05942234]
[1734252926802,0.20019487,101940.0,101930.0,1.1678061]
[1734252928861,0.12219487,101940.0,101930.0,1.1678061]
[1734252931553,0.12219487,101940.0,101930.0,1.25557549]
[1734252939723,0.00014084,101940.0,101930.0,1.25557549]
[1734252939962,0.00014084,101940.0,101930.0,1.33407549]
[1734252940330,0.00014084,101940.0,101930.0,1.25557549]
[1734252942273,0.00014084,101940.0,101930.0,1.18977804]
[1734252942483,0.00014084,101940.0,101930.0,1.25557549]
[1734252948091,0.00014084,101940.0,101930.0,1.33407549]
[1734252950124,0.00014084,101940.0,101930.0,1.2463061]
[1734252960561,0.00014084,101940.0,101930.0,1.24657838]
[1734252963483,0.00014084,101940.0,101930.0,1.24668765]
[1734252965381,0.00014084,101940.0,101930.0,1.24674692]
[1734252968448,0.00014084,101940.0,101930.0,1.11505449]
[1734252969058,0.00014084,101940.0,101930.0,0.98336206]
[1734252970573,0.00014084,101940.0,101930.0,1.04915951]
[1734252970787,0.00014084,101940.0,101930.0,1.09755951]
[1734252973381,0.00014084,101940.0,101930.0,1.03176206]
[1734252975937,0.00014084,101940.0,101930.0,1.09755951]
[1734252976137,0.00014084,101940.0,101930.0,1.10251951]
[1734252976570,0.00014084,101940.0,101930.0,0.97092461]
[1734252976794,0.00014084,101940.0,101930.0,1.03672206]
[1734252977621,0.00014084,101940.0,101930.0,1.10251951]
[1734252977835,0.00014084,101940.0,101930.0,1.03672206]
[1734252981874,0.00014084,101940.0,101930.0,0.97092461]
[1734252982297,0.00014084,101940.0,101930.0,1.03672206]
[1734252984037,0.00014084,101940.0,101930.0,0.97092461]
[1734252984249,0.00014084,101940.0,101930.0,1.03672206]
[1734252985286,0.00014084,101940.0,101930.0,1.03649816]
[1734252987535,0.00014084,101940.0,101930.0,1.25590242]
[1734252994009,0.00014084,101940.0,101930.0,1.25618907]
[1734252994440,0.00014084,101940.0,101930.0,1.06349162]
[1734252994657,0.00014084,101940.0,101930.0,1.041518]
[1734252994867,0.09919487,101940.0,101930.0,1.173237]
[1734252995070,0.17449487,101940.0,101930.0,1.173237]
[1734252996937,0.37068787,101940.0,101930.0,1.173237]
[1734252997364,0.37068787,101940.0,101930.0,0.977024]
[1734252997966,0.39368787,101940.0,101930.0,1.06483835]
[1734252998312,0.39368787,101940.0,101930.0,1.01503143]
[1734252998519,0.39368787,101940.0,101930.0,1.06503143]
[1734253000498,0.39368787,101940.0,101930.0,0.84548732]
[1734253005280,0.31838787,101940.0,101930.0,0.84548732]
[1734253007314,0.31838787,101940.0,101930.0,0.8452604]
[1734253007745,0.12219487,101940.0,101930.0,1.0414734]
[1734253008048,0.12219487,101940.0,101930.0,1.26094825]
[1734253011665,0.12219487,101940.0,101930.0,1.34264825]
[1734253019602,0.00014084,101940.0,101930.0,1.4084457]
[1734253019817,0.00014084,101940.0,101930.0,1.34264825]
[1734253020423,0.00014084,101940.0,101930.0,1.25485831]
[1734253023533,0.06715328,101950.0,101930.0,1.25485831]
[1734253023786,0.18816815,101950.0,101940.0,0.39976733]
[1734253023986,0.18816815,101950.0,101940.0,0.40436971]
[1734253024198,0.13816815,101950.0,101940.0,0.40436954]
[1734253024818,0.18816815,101950.0,101940.0,0.40436954]
[1734253025140,0.18816815,101950.0,101940.0,0.53603461]
[1734253025339,0.13816815,101950.0,101940.0,0.60183206]
[1734253025541,0.18816815,101950.0,101940.0,0.60190736]
[1734253027706,0.18816815,101950.0,101940.0,0.9260621]
[1734253028113,0.18816815,101950.0,101940.0,0.86026465]
[1734253028334,0.27076815,101950.0,101940.0,0.5982742]
[1734253028538,0.46694215,101950.0,101940.0,0.5982742]
[1734253028947,0.46694215,101950.0,101940.0,0.14240921]
[1734253029149,0.46694215,101950.0,101940.0,0.27411946]
[1734253029555,0.46694215,101950.0,101940.0,0.20820666]
[1734253032516,0.46694215,101950.0,101940.0,0.14240921]
[1734253032717,0.52579039,101950.0,101940.0,0.09240921]
[1734253032859,0.51414215,101950.0,101940.0,0.14240921]
[1734253033061,0.51414215,101950.0,101940.0,0.14244186]
[1734253034103,0.51414215,101950.0,101940.0,0.20823931]
[1734253034886,0.51414215,101950.0,101940.0,0.15823931]
[1734253038611,0.51414215,101950.0,101940.0,0.28999854]
[1734253040451,0.51414215,101950.0,101940.0,0.61441742]
[1734253046020,0.38434215,101950.0,101940.0,0.69531742]
[1734253046752,0.38434215,101950.0,101940.0,0.69536911]
[1734253050691,0.38434215,101950.0,101940.0,0.69554131]
[1734253052411,0.38434215,101950.0,101940.0,0.61464131]
[1734253052618,0.45488117,101950.0,101940.0,0.61464131]
[1734253052822,0.45488117,101950.0,101940.0,0.54884386]
[1734253053010,0.38434215,101950.0,101940.0,0.54884386]
[1734253060488,0.38434215,101950.0,101940.0,0.5489969]
[1734253064236,0.38434215,101950.0,101940.0,0.61479435]
[1734253065074,0.38434215,101950.0,101940.0,0.61481682]
[1734253069660,0.38434215,101950.0,101940.0,0.69241682]
[1734253073547,0.38434215,101950.0,101940.0,0.86822334]
[1734253073956,0.38434215,101950.0,101940.0,0.14817203]
[1734253074143,0.38434215,101950.0,101940.0,0.86834032]
[1734253079437,0.42357415,101950.0,101940.0,0.86834032]
[1734253081418,0.42357415,101950.0,101940.0,0.8683472]
[1734253085749,0.42357415,101950.0,101940.0,0.86837293]
[1734253085952,0.42357415,101950.0,101940.0,0.86837287]
[1734253090214,0.42357415,101950.0,101940.0,0.86838697]
[1734253096013,0.17740015,101950.0,101940.0,0.86838697]
[1734253096212,0.17740015,101950.0,101940.0,1.17877742]
[1734253096213,0.11516815,101950.0,101940.0,1.17877742]
[1734253096424,0.11516815,101950.0,101940.0,1.39858551]
[1734253097179,0.11516815,101950.0,101940.0,1.26699061]
[1734253097551,0.11516815,101950.0,101940.0,1.39858551]
[1734253097767,0.11516815,101950.0,101940.0,1.39596604]
[1734253097987,0.11516815,101950.0,101940.0,1.39912109]
[1734253098986,0.11516815,101950.0,101940.0,1.39876769]
[1734253101429,0.11516815,101950.0,101940.0,1.17904224]
[1734253103511,0.11516815,101950.0,101940.0,1.11324479]
[1734253105543,0.11516815,101950.0,101940.0,0.52510993]
[1734253105771,0.11516815,101950.0,101940.0,1.11310308]
[1734253106020,0.11412565,101950.0,101940.0,1.11310308]
[1734253108964,0.31029965,101950.0,101940.0,0.91691008]
[1734253111869,0.38329965,101950.0,101940.0,0.80271263]
[1734253112071,0.38329965,101950.0,101940.0,0.54936687]
[1734253114572,0.38329965,101950.0,101940.0,0.29078981]
[1734253116711,0.38329965,101950.0,101940.0,0.29079807]
[1734253118472,0.38329965,101950.0,101940.0,0.22500062]
[1734253121005,0.38329965,101950.0,101940.0,0.22500754]
[1734253124974,0.11412565,101950.0,101940.0,0.98143749]
[1734253125181,0.31029965,101950.0,101940.0,1.20113488]
[1734253125336,0.31029965,101950.0,101940.0,1.25095246]
[1734253126789,0.31029965,101950.0,101940.0,1.20095246]
[1734253129103,0.31029965,101950.0,101940.0,1.25095246]
[1734253130133,0.31029965,101950.0,101940.0,1.11935756]
[1734253130331,0.31029965,101950.0,101940.0,1.25095246]
[1734253131686,0.11412565,101950.0,101940.0,1.25095246]
[1734253131813,0.11412565,101950.0,101940.0,1.44714546]
[1734253134396,0.11412565,101950.0,101940.0,0.50779806]
[1734253134599,0.11412565,101950.0,101940.0,1.44691548]
[1734253141794,0.01507162,101950.0,101940.0,1.44691548]
[1734253146717,0.01507162,101950.0,101940.0,1.44672219]
[1734253151267,0.01507162,101950.0,101940.0,1.4466505]
[1734253152929,0.01507162,101950.0,101940.0,1.3150556]
[1734253153133,0.01507162,101950.0,101940.0,1.4466505]
[1734253153538,0.00500844,101950.0,101940.0,1.35883676]
[1734253154179,0.00500844,101950.0,101940.0,1.42463421]
[1734253154398,0.00500844,101950.0,101940.0,1.35883676]
[1734253155161,0.00500844,101950.0,101940.0,1.42463421]
[1734253156297,0.00500844,101950.0,101940.0,1.35883676]
[1734253161438,0.00500844,101950.0,101940.0,1.42463421]
[1734253164904,0.00500844,101950.0,101940.0,1.42441523]
[1734253166084,0.00500844,101950.0,101940.0,1.22693105]
[1734253169231,0.00500844,101950.0,101940.0,1.05134875]
[1734253169650,0.00500844,101950.0,101940.0,1.22694656]
[1734253170275,0.00500844,101950.0,101940.0,1.1171462]
[1734253171250,0.00500844,101950.0,101940.0,1.05134875]
[1734253172522,0.00500844,101950.0,101940.0,1.1171462]
[1734253172898,0.00500844,101950.0,101940.0,1.05134875]
[1734253174065,0.00500844,101950.0,101940.0,1.0514147]
[1734253174205,0.00500844,101950.0,101940.0,0.9198198]
[1734253174404,0.00500844,101950.0,101940.0,1.11721215]
[1734253174633,0.00500844,101950.0,101940.0,0.9198198]
[1734253174842,0.00500844,101950.0,101940.0,1.11721215]
[1734253175821,0.00500844,101950.0,101940.0,0.9198198]
[1734253176218,0.00500844,101950.0,101940.0,1.0514147]
[1734253177464,0.00500844,101950.0,101940.0,1.11721215]
[1734253177723,0.00500844,101950.0,101940.0,1.38061756]
[1734253183057,0.00500844,101950.0,101940.0,1.38064553]
[1734253185511,0.00500844,101950.0,101940.0,1.20296458]
[1734253185714,0.00500844,101950.0,101940.0,1.38064553]
[1734253186660,0.00500844,101950.0,101940.0,1.16113341]
[1734253187480,0.00500844,101950.0,101940.0,1.16116689]
[1734253187639,0.00500844,101950.0,101940.0,1.09536944]
[1734253188022,0.00500844,101950.0,101940.0,0.96377454]
[1734253188395,0.00500844,101950.0,101940.0,1.09536944]
[1734253192277,0.00500844,101950.0,101940.0,1.71995034]
[1734253192482,8.61e-05,101960.0,101950.0,0.322874]
[1734253192690,8.61e-05,101960.0,101950.0,1.04189928]
[1734253192933,8.61e-05,101960.0,101950.0,1.04706645]
[1734253193149,8.61e-05,101960.0,101950.0,0.91547155]
[1734253193349,8.61e-05,101960.0,101950.0,1.20070255]
[1734253193510,8.61e-05,101960.0,101950.0,0.937414]
[1734253194116,8.61e-05,101960.0,101950.0,0.79491655]
[1734253194319,8.61e-05,101960.0,101950.0,0.860714]
[1734253194520,8.61e-05,101960.0,101950.0,0.97044916]
[1734253194749,8.61e-05,101960.0,101950.0,1.03624661]
[1734253196175,8.61e-05,101960.0,101950.0,1.11273973]
[1734253198585,8.61e-05,101960.0,101950.0,1.04694228]
[1734253198782,8.61e-05,101960.0,101950.0,1.11273973]
[1734253199048,8.61e-05,101960.0,101950.0,1.04694228]
[1734253199239,8.61e-05,101960.0,101950.0,1.11273973]
[1734253200448,8.61e-05,101960.0,101950.0,1.11251649]
[1734253201173,0.1962411,101960.0,101950.0,0.77384504]
[1734253201393,0.2728411,101960.0,101950.0,0.99321165]
[1734253201534,0.37189513,101960.0,101950.0,1.0590091]
[1734253203252,0.37189513,101960.0,101950.0,1.05916317]
[1734253205601,0.29529513,101960.0,101950.0,1.05916317]
[1734253206020,0.29529513,101960.0,101950.0,0.55973549]
[1734253206231,0.29529513,101960.0,101950.0,1.05918015]
[1734253207537,0.29529513,101960.0,101950.0,1.05919478]
[1734253211813,0.09914013,101960.0,101950.0,1.05919478]
[1734253212064,0.09914013,101960.0,101950.0,1.24581324]
[1734253216178,0.09914013,101960.0,101950.0,1.24590644]
[1734253217606,0.09914013,101960.0,101950.0,1.24073927]
[1734253217808,0.09914013,101960.0,101950.0,1.24590588]
[1734253220424,0.29529513,101960.0,101950.0,1.05930032]
[1734253221132,0.31829513,101960.0,101950.0,0.94350287]
[1734253221363,0.44399513,101960.0,101950.0,0.54873185]
[1734253221748,0.44399513,101960.0,101950.0,0.22475499]
[1734253221878,0.44399513,101960.0,101950.0,0.09310725]
[1734253222789,0.44399513,101960.0,101950.0,0.1589047]
[1734253223651,0.09914013,101960.0,101950.0,0.3550787]
[1734253223866,0.09914013,101960.0,101950.0,0.81075002]
[1734253224333,0.29529513,101960.0,101950.0,0.61457602]
[1734253224548,0.29529513,101960.0,101950.0,0.61460205]
[1734253224900,0.29529513,101960.0,101950.0,0.1589137]
[1734253226044,0.31829513,101960.0,101950.0,0.1589137]
[1734253226355,0.39399513,101960.0,101950.0,0.1589137]
[1734253226532,0.44399513,101960.0,101950.0,0.1589137]
[1734253228564,0.44399513,101960.0,101950.0,0.09311625]
[1734253228985,0.36829513,101960.0,101950.0,0.09311625]
[1734253230505,0.36829513,101960.0,101950.0,0.09569426]
[1734253231539,0.36829513,101960.0,101950.0,0.16149171]
[1734253233048,0.36829513,101960.0,101950.0,0.16149476]
[1734253237048,0.36829513,101960.0,101950.0,0.16149193]
[1734253240730,0.36829513,101960.0,101950.0,0.09569448]
[1734253241747,0.36829513,101960.0,101950.0,0.16149193]
[1734253243051,0.36829513,101960.0,101950.0,0.29315842]
[1734253243581,0.36829513,101960.0,101950.0,0.16149193]
[1734253243788,0.36829513,101960.0,101950.0,0.09569448]
[1734253245840,0.36829513,101960.0,101950.0,0.0957314]
[1734253248793,0.36829513,101960.0,101950.0,0.00791682]
[1734253252807,0.51329258,101960.0,101950.0,0.00791682]
[1734253254433,0.53291048,101960.0,101950.0,0.00791682]
[1734253255035,0.57791048,101960.0,101950.0,0.00791682]
[1734253256959,0.52791048,101960.0,101950.0,0.00791682]
[1734253259679,0.62696451,101960.0,101950.0,0.00791682]
[1734253259876,0.52791048,101960.0,101950.0,0.00791682]
[1734253261547,0.59881817,101960.0,101950.0,0.00791682]
[1734253261690,0.62118254,101960.0,101950.0,0.00580984]
[1734253263580,0.68006254,101960.0,101950.0,0.00580984]
[1734253263781,0.62118254,101960.0,101950.0,0.00580984]
[1734253264926,0.65118254,101960.0,101950.0,0.00580984]
[1734253265684,0.78342527,101960.0,101950.0,0.00580984]
[1734253266046,0.65113801,101960.0,101950.0,0.00580984]
[1734253266248,0.78331394,101960.0,101950.0,0.00580984]
[1734253266386,0.65113801,101960.0,101950.0,0.00580984]
[1734253268373,0.78064894,101960.0,101950.0,0.00580984]
[1734253268533,0.91282487,101960.0,101950.0,0.00580984]
[1734253268927,1.08905945,101960.0,101950.0,0.01558584]
[1734253269775,1.02534597,101960.0,101950.0,0.01558584]
[1734253270319,0.84911139,101960.0,101950.0,0.01558584]
[1734253270530,1.02534597,101960.0,101950.0,0.01558584]
[1734253273664,1.23422597,101960.0,101950.0,0.01558584]
[1734253274503,0.36117145,101950.0,101940.0,0.0001722]
[1734253274684,0.60427951,101950.0,101940.0,0.0001722]
[1734253274924,0.59329529,101950.0,101940.0,0.0001722]
[1734253275125,0.72540001,101950.0,101940.0,0.0001722]
[1734253275331,0.79119746,101950.0,101940.0,0.0001722]
[1734253275750,1.39639163,101950.0,101940.0,0.0001722]
[1734253275946,0.36119045,101940.0,101930.0,0.0049771]
[1734253276204,0.54830597,101940.0,101930.0,0.0049771]
[1734253276426,0.61410342,101940.0,101930.0,0.0049771]
[1734253277453,0.52604193,101940.0,101930.0,0.0049771]
[1734253277707,0.62509596,101940.0,101930.0,0.0049771]
[1734253278335,0.71315745,101940.0,101930.0,0.0049771]
[1734253279129,0.84526217,101940.0,101930.0,0.0049771]
[1734253279329,0.71315745,101940.0,101930.0,0.0049771]
[1734253279552,0.76790785,101940.0,101930.0,0.0049771]
[1734253279762,1.05001257,101940.0,101930.0,0.0049771]
[1734253280407,0.91790785,101940.0,101930.0,0.0049771]
[1734253281496,0.97678785,101940.0,101930.0,1e-07]
[1734253281935,0.98188425,101940.0,101930.0,1e-07]
[1734253282150,0.9160868,101940.0,101930.0,0.00669363]
[1734253282359,0.05,101920.0,101910.0,0.0001722]
[1734253282585,0.51362176,101920.0,101910.0,0.0001722]
[1734253282795,0.43408348,101920.0,101910.0,0.0001722]
[1734253285813,0.38408348,101920.0,101910.0,0.0001722]
[1734253286868,0.52608093,101920.0,101910.0,0.0001722]
[1734253287312,0.53595111,101920.0,101910.0,0.0001722]
[1734253287988,0.60342193,101920.0,101910.0,0.0001722]
[1734253289202,0.75342193,101920.0,101910.0,0.0001722]
[1734253289408,0.68595111,101920.0,101910.0,0.0001722]
[1734253289740,0.68595111,101920.0,101910.0,0.00914442]
[1734253291361,0.70556573,101920.0,101910.0,0.00914442]
[1734253292194,0.63976828,101920.0,101910.0,0.00914442]
[1734253293550,0.56356828,101920.0,101910.0,0.00914442]
[1734253293966,0.6522446,101920.0,101910.0,0.00914442]
[1734253294697,0.7302446,101920.0,101910.0,0.00914442]
[1734253294924,0.79604205,101920.0,101910.0,0.00914442]
[1734253295099,0.80112653,101920.0,101910.0,0.00914442]
[1734253297536,0.80112653,101920.0,101910.0,0.00828175]
[1734253297756,0.80112653,101920.0,101910.0,0.00750555]
[1734253297961,0.80112653,101920.0,101910.0,0.00418208]
[1734253298161,0.80112653,101920.0,101910.0,0.00695163]
[1734253298557,0.196251,101910.0,101900.0,0.00013221]
[1734253298724,0.53410248,101910.0,101900.0,0.00013221]
[1734253302757,0.46830503,101910.0,101900.0,0.00013221]
[1734253303199,0.53410248,101910.0,101900.0,0.00013221]
[1734253305340,0.38410248,101910.0,101900.0,0.005965]
[1734253305903,0.53410248,101910.0,101900.0,0.005965]
[1734253307066,0.53410248,101910.0,101900.0,0.00551836]
[1734253308454,0.57335548,101910.0,101900.0,0.00551836]
[1734253309491,0.57335548,101910.0,101900.0,0.08341836]
[1734253309913,0.59039548,101910.0,101900.0,0.08341836]
[1734253314009,0.52459803,101910.0,101900.0,0.08359076]
[1734253314422,0.48534503,101910.0,101900.0,0.08359076]
[1734253316381,0.55114248,101910.0,101900.0,0.08359076]
[1734253318200,0.58114248,101910.0,101900.0,0.08359076]
[1734253319250,0.5810308,101910.0,101900.0,0.08359076]
[1734253319435,0.5810308,101910.0,101900.0,0.00569076]
[1734253321698,0.5810308,101910.0,101900.0,0.08359076]
[1734253322045,0.51523335,101910.0,101900.0,0.08359076]
[1734253323311,0.60327806,101910.0,101900.0,0.08359076]
[1734253324342,0.73534512,101910.0,101900.0,0.08359076]
[1734253324730,0.73558228,101910.0,101900.0,0.08359076]
[1734253325958,0.73566848,101910.0,101900.0,0.08359076]
[1734253326311,0.51531955,101910.0,101900.0,0.08359076]
[1734253326485,0.73576268,101910.0,101900.0,0.08359076]
[1734253327372,0.91211719,101910.0,101900.0,0.08359076]
[1734253327725,0.97791464,101910.0,101900.0,0.08359076]
[1734253328339,1.13256032,101910.0,101900.0,0.08359076]
[1734253328933,0.91232815,101910.0,101900.0,0.08359076]
[1734253329395,1.13288849,101910.0,101900.0,0.08359076]
[1734253329590,0.91232815,101910.0,101900.0,0.08359076]
[1734253331931,0.9781256,101910.0,101900.0,0.08359076]
[1734253332616,0.91232815,101910.0,101900.0,0.08359076]
[1734253336549,1.13288849,101910.0,101900.0,0.08359076]
[1734253337869,1.19868594,101910.0,101900.0,0.08359076]
[1734253340147,0.97812561,101910.0,101900.0,0.08359076]
[1734253340274,1.11051567,101910.0,101900.0,0.08359076]
[1734253340884,1.11051567,101910.0,101900.0,0.00569076]
[1734253341134,0.97812561,101910.0,101900.0,0.00569076]
[1734253341308,1.12541735,101910.0,101900.0,0.00569076]
[1734253341487,1.0596199,101910.0,101900.0,0.00569076]
[1734253344140,0.3508649,101900.0,101890.0,0.0001722]
[1734253344305,0.78132849,101900.0,101890.0,0.0001722]
[1734253345309,0.84712594,101900.0,101890.0,0.0001722]
[1734253345515,0.84712594,101900.0,101890.0,0.00072]
[1734253346057,0.84710031,101900.0,101890.0,0.00072]
[1734253346275,1.06775663,101900.0,101890.0,0.00072]
[1734253349438,0.84710031,101900.0,101890.0,0.00072]
[1734253349877,0.85673389,101900.0,101890.0,0.00072]
[1734253350749,0.8762315,101900.0,101890.0,0.00072]
[1734253351502,0.8762315,101900.0,101890.0,0.00566729]
[1734253353217,1.09688782,101900.0,101890.0,0.00566729]
[1734253353425,1.19594185,101900.0,101890.0,0.00566729]
[1734253353627,1.09688782,101900.0,101890.0,0.00566729]
[1734253355197,1.17638782,101900.0,101890.0,0.00566729]
[1734253355459,0.81043405,101900.0,101890.0,0.00566729]
[1734253355912,0.8762315,101900.0,101890.0,0.00566729]
[1734253356116,1.09674293,101900.0,101890.0,0.00566729]
[1734253356320,0.8762315,101900.0,101890.0,0.00566729]
[1734253357094,0.8762315,101900.0,101890.0,0.00449729]
[1734253357454,0.26929,101890.0,101880.0,0.0488722]
[1734253357665,0.36834403,101890.0,101880.0,0.04892699]
[1734253358060,0.29534403,101890.0,101880.0,0.19172444]
[1734253358342,0.29534403,101890.0,101880.0,0.24172444]
[1734253358540,0.29534403,101890.0,101880.0,0.17592699]
[1734253360416,0.19629,101890.0,101880.0,0.24172444]
[1734253360801,0.42527378,101900.0,101890.0,0.1257]
[1734253361006,0.32804381,101900.0,101890.0,0.1757]
[1734253362416,0.32804381,101900.0,101890.0,0.24149745]
[1734253362978,0.32794147,101900.0,101890.0,0.24149745]
[1734253364037,0.10877381,101900.0,101890.0,0.24149745]
[1734253364246,0.00971978,101900.0,101890.0,0.78626121]
[1734253364459,0.00971978,101900.0,101890.0,0.78622037]
[1734253364662,0.00971978,101900.0,101890.0,0.9623456]
[1734253364870,0.00971978,101900.0,101890.0,1.16345977]
[1734253365080,0.00971978,101900.0,101890.0,0.98733454]
[1734253366239,0.00971978,101900.0,101890.0,1.16345977]
[1734253369272,0.00971978,101900.0,101890.0,0.98733454]
[1734253370697,0.00971978,101900.0,101890.0,0.98750694]
[1734253371733,0.00971978,101900.0,101890.0,0.85541302]
[1734253371932,0.00971978,101900.0,101890.0,0.98645197]
[1734253373063,8.62e-05,101900.0,101890.0,1.31207215]
[1734253373292,8.62e-05,101900.0,101890.0,1.53159738]
[1734253375451,8.62e-05,101900.0,101890.0,1.31207215]
[1734253377332,8.62e-05,101900.0,101890.0,1.13645197]
[1734253378435,8.62e-05,101900.0,101890.0,1.20224942]
[1734253378637,8.62e-05,101900.0,101890.0,1.3778696]
[1734253378999,8.62e-05,101900.0,101890.0,1.40523217]
[1734253379197,8.62e-05,101900.0,101890.0,1.33943472]
[1734253379389,8.62e-05,101900.0,101890.0,1.5042862]
[1734253379711,8.62e-05,101900.0,101890.0,1.77381143]
[1734253380859,8.62e-05,101900.0,101890.0,1.68600134]
[1734253381214,8.62e-05,101900.0,101890.0,1.77365983]
[1734253384357,8.62e-05,101900.0,101890.0,1.52677203]
[1734253387911,8.62e-05,101900.0,101890.0,1.52520326]
[1734253392109,8.62e-05,101900.0,101890.0,1.74420343]
[1734253392240,8.62e-05,101900.0,101890.0,1.52520326]
[1734253392449,8.62e-05,101900.0,101890.0,1.74420343]
[1734253392657,8.62e-05,101900.0,101890.0,1.52520326]
[1734253393659,8.62e-05,101900.0,101890.0,1.47520326]
[1734253393861,8.62e-05,101900.0,101890.0,1.52520326]
[1734253394862,8.62e-05,101900.0,101890.0,1.45940581]
[1734253395021,8.62e-05,101900.0,101890.0,1.52520326]
[1734253395193,8.62e-05,101900.0,101890.0,1.54642736]
[1734253396482,8.62e-05,101900.0,101890.0,1.76542753]
[1734253396685,0.0171262,101910.0,101900.0,0.4584949]
[1734253396896,0.0171262,101910.0,101900.0,1.47135697]
[1734253397306,0.0171262,101910.0,101900.0,1.47659378]
[1734253398643,0.0171262,101910.0,101900.0,1.54239123]
[1734253399308,0.0171262,101910.0,101900.0,1.7613914]
[1734253399832,0.0171262,101910.0,101900.0,1.69559395]
[1734253400038,0.0171262,101910.0,101900.0,1.7613914]
[1734253401361,0.0171262,101910.0,101900.0,1.75116579]
[1734253401565,0.0171262,101910.0,101900.0,1.63950132]
[1734253401716,0.0171262,101910.0,101900.0,1.61978305]
[1734253401917,0.0171262,101910.0,101900.0,1.73786174]
[1734253402132,0.0171262,101910.0,101900.0,1.47506153]
[1734253402331,0.0171262,101910.0,101900.0,1.73786174]
[1734253402960,0.0171262,101910.0,101900.0,1.64470172]
[1734253403293,0.0171262,101910.0,101900.0,2.06705977]